Workbook

Sheet Läbitud vahemaa logi
B1: LÄBITUD VAHEMAA LOGI
C11: HÜVITATAVAD | E11: KOKKU
C12: KILOMEETRID | E12: KULUHÜVITIS
C17: 2012-05-01 | E17: 2012-05-10
C19: PERIOOD | E19: PERIOOD
C20: ALGUS | E20: LÕPP
C26: 54 | E26: 9,800
C28: KULUHÜVITIS | E28: EELMINE KÜTUS
C29: s/km | E29: HODOMEETER

Sheet Logi andmed
B1: LÄBITUD VAHEMAA LOGI
B5: KUUPÄEV | C5: TEGEVUS | D5: HODOM. 1 | E5: ASUKOHT | F5: HODOM. 2 | G5: SIHTKOHT | H5: HÜVITIS | I5: LIITRID | J5: KULU | K5: KILOMEETRID | L5: km/l | M5: s/km | N5: MÄRKMED
B6: 2012-05-01 | C6: Reis | D6: 10,123 | E6: Chevron – Uus tn | F6: 10,130 | I6: 15.56 | J6: 20.07 € | K6: =Kilomeetrid -> 7 | L6: =IF(OR(LEN(Andmed[[#This Row],[HODOM. 2]]),Andmed[[#This Row],[HODOM. 1]]=""),"",IFERROR(Andmed[[#This Row],[KILOMEETRID]]/Andmed[[#This Row],[LIITRID]],"")) ->  | M6: =IF(Andmed[[#This Row],[km/l]]="","",100*Andmed[[#This Row],[KULU]]/Andmed[[#This Row],[KILOMEETRID]]) -> 
B7: 2012-05-01 | C7: Reis | D7: 10,130 | E7: Kontor | F7: 10,200 | G7: Kirsi tänav | H7: Jah | K7: =Kilomeetrid -> 70 | L7: =IF(OR(LEN(Andmed[[#This Row],[HODOM. 2]]),Andmed[[#This Row],[HODOM. 1]]=""),"",IFERROR(Andmed[[#This Row],[KILOMEETRID]]/Andmed[[#This Row],[LIITRID]],"")) ->  | M7: =IF(Andmed[[#This Row],[km/l]]="","",100*Andmed[[#This Row],[KULU]]/Andmed[[#This Row],[KILOMEETRID]]) -> 
B8: 2012-05-01 | C8: Reis | D8: 10,200 | E8: Smithfields | F8: 10,285 | G8: Kontor | H8: Jah | K8: =Kilomeetrid -> 85 | L8: =IF(OR(LEN(Andmed[[#This Row],[HODOM. 2]]),Andmed[[#This Row],[HODOM. 1]]=""),"",IFERROR(Andmed[[#This Row],[KILOMEETRID]]/Andmed[[#This Row],[LIITRID]],"")) ->  | M8: =IF(Andmed[[#This Row],[km/l]]="","",100*Andmed[[#This Row],[KULU]]/Andmed[[#This Row],[KILOMEETRID]]) -> 
B9: 2012-05-02 | C9: Reis | D9: 10,285 | E9: Kontor | F9: 10,450 | G9: Colo Vineyard | H9: Jah | K9: =Kilomeetrid -> 165 | L9: =IF(OR(LEN(Andmed[[#This Row],[HODOM. 2]]),Andmed[[#This Row],[HODOM. 1]]=""),"",IFERROR(Andmed[[#This Row],[KILOMEETRID]]/Andmed[[#This Row],[LIITRID]],"")) ->  | M9: =IF(Andmed[[#This Row],[km/l]]="","",100*Andmed[[#This Row],[KULU]]/Andmed[[#This Row],[KILOMEETRID]]) -> 
B10: 2012-05-02 | C10: Kütus | D10: 10,450 | E10: Shell | I10: 11.20 | J10: 14.22 € | K10: =Kilomeetrid -> 650 | L10: =IF(OR(LEN(Andmed[[#This Row],[HODOM. 2]]),Andmed[[#This Row],[HODOM. 1]]=""),"",IFERROR(Andmed[[#This Row],[KILOMEETRID]]/Andmed[[#This Row],[LIITRID]],"")) -> 58.0 | M10: =IF(Andmed[[#This Row],[km/l]]="","",100*Andmed[[#This Row],[KULU]]/Andmed[[#This Row],[KILOMEETRID]]) -> 2.2
B11: 2012-05-02 | C11: Reis | D11: 10,500 | E11: Colo Vineyard | F11: 10,518 | G11: Kontor | H11: Jah | K11: =Kilomeetrid -> 18 | L11: =IF(OR(LEN(Andmed[[#This Row],[HODOM. 2]]),Andmed[[#This Row],[HODOM. 1]]=""),"",IFERROR(Andmed[[#This Row],[KILOMEETRID]]/Andmed[[#This Row],[LIITRID]],"")) ->  | M11: =IF(Andmed[[#This Row],[km/l]]="","",100*Andmed[[#This Row],[KULU]]/Andmed[[#This Row],[KILOMEETRID]]) -> 
B12: 2012-05-03 | C12: Reis | D12: 10,518 | E12: Kontor | F12: 10,745 | G12: Kontor | H12: Jah | K12: =Kilomeetrid -> 227 | L12: =IF(OR(LEN(Andmed[[#This Row],[HODOM. 2]]),Andmed[[#This Row],[HODOM. 1]]=""),"",IFERROR(Andmed[[#This Row],[KILOMEETRID]]/Andmed[[#This Row],[LIITRID]],"")) ->  | M12: =IF(Andmed[[#This Row],[km/l]]="","",100*Andmed[[#This Row],[KULU]]/Andmed[[#This Row],[KILOMEETRID]]) -> 
B13: 2012-05-04 | C13: Kütus | D13: 10,745 | E13: Chevron – Uus tn | I13: 16.60 | J13: 21.25 € | K13: =Kilomeetrid -> 295 | L13: =IF(OR(LEN(Andmed[[#This Row],[HODOM. 2]]),Andmed[[#This Row],[HODOM. 1]]=""),"",IFERROR(Andmed[[#This Row],[KILOMEETRID]]/Andmed[[#This Row],[LIITRID]],"")) -> 17.8 | M13: =IF(Andmed[[#This Row],[km/l]]="","",100*Andmed[[#This Row],[KULU]]/Andmed[[#This Row],[KILOMEETRID]]) -> 7.2
B14: 2012-05-04 | C14: Reis | D14: 10,745 | E14: Kontor | F14: 10,800 | G14: Porterville | H14: Jah | K14: =Kilomeetrid -> 55 | L14: =IF(OR(LEN(Andmed[[#This Row],[HODOM. 2]]),Andmed[[#This Row],[HODOM. 1]]=""),"",IFERROR(Andmed[[#This Row],[KILOMEETRID]]/Andmed[[#This Row],[LIITRID]],"")) ->  | M14: =IF(Andmed[[#This Row],[km/l]]="","",100*Andmed[[#This Row],[KULU]]/Andmed[[#This Row],[KILOMEETRID]]) -> 
B15: 2012-05-04 | C15: Reis | D15: 10,800 | E15: Porterville | F15: 10,875 | G15: Kontor | H15: Jah | K15: =Kilomeetrid -> 75 | L15: =IF(OR(LEN(Andmed[[#This Row],[HODOM. 2]]),Andmed[[#This Row],[HODOM. 1]]=""),"",IFERROR(Andmed[[#This Row],[KILOMEETRID]]/Andmed[[#This Row],[LIITRID]],"")) ->  | M15: =IF(Andmed[[#This Row],[km/l]]="","",100*Andmed[[#This Row],[KULU]]/Andmed[[#This Row],[KILOMEETRID]]) -> 
B16: 2012-05-07 | C16: Reis | D16: 10,875 | E16: Kontor | F16: 10,921 | G16: Kirsi tänav | H16: Jah | K16: =Kilomeetrid -> 46 | L16: =IF(OR(LEN(Andmed[[#This Row],[HODOM. 2]]),Andmed[[#This Row],[HODOM. 1]]=""),"",IFERROR(Andmed[[#This Row],[KILOMEETRID]]/Andmed[[#This Row],[LIITRID]],"")) ->  | M16: =IF(Andmed[[#This Row],[km/l]]="","",100*Andmed[[#This Row],[KULU]]/Andmed[[#This Row],[KILOMEETRID]]) -> 
B17: 2012-05-07 | C17: Reis | D17: 10,921 | E17: Smithfields | F17: 10,969 | G17: Kontor | H17: Jah | K17: =Kilomeetrid -> 48 | L17: =IF(OR(LEN(Andmed[[#This Row],[HODOM. 2]]),Andmed[[#This Row],[HODOM. 1]]=""),"",IFERROR(Andmed[[#This Row],[KILOMEETRID]]/Andmed[[#This Row],[LIITRID]],"")) ->  | M17: =IF(Andmed[[#This Row],[km/l]]="","",100*Andmed[[#This Row],[KULU]]/Andmed[[#This Row],[KILOMEETRID]]) -> 
B18: 2012-05-09 | C18: Reis | D18: 10,969 | E18: Kontor | F18: 11,000 | G18: Riverside | H18: Jah | K18: =Kilomeetrid -> 31 | L18: =IF(OR(LEN(Andmed[[#This Row],[HODOM. 2]]),Andmed[[#This Row],[HODOM. 1]]=""),"",IFERROR(Andmed[[#This Row],[KILOMEETRID]]/Andmed[[#This Row],[LIITRID]],"")) ->  | M18: =IF(Andmed[[#This Row],[km/l]]="","",100*Andmed[[#This Row],[KULU]]/Andmed[[#This Row],[KILOMEETRID]]) -> 
B19: 2012-05-09 | C19: Reis | D19: 11,000 | E19: Riverside | F19: 11,100 | G19: Kodu | H19: Ei | K19: =Kilomeetrid -> 100 | L19: =IF(OR(LEN(Andmed[[#This Row],[HODOM. 2]]),Andmed[[#This Row],[HODOM. 1]]=""),"",IFERROR(Andmed[[#This Row],[KILOMEETRID]]/Andmed[[#This Row],[LIITRID]],"")) ->  | M19: =IF(Andmed[[#This Row],[km/l]]="","",100*Andmed[[#This Row],[KULU]]/Andmed[[#This Row],[KILOMEETRID]]) -> 

Sheet Arvutused (hidden)
A1: *** See leht jääb varjatuks ***
I6: =OFFSET(I9,,teineTelg="kütuse maksumus") -> s/km
M7: 2
H8: Reis | I8: Kütus | J8: Kütus | L8: Teine telg: | M8: =REPT("Miili/galloni",M7=1)&REPT("kütuse maksumus",M7=2) -> kütuse maksumus
H9: Läbitud kilomeetrid | I9: km/l | J9: s/km
C10: Hüvitatavad miilid: | D10: =SUMIFS(Andmed[KILOMEETRID],Andmed[HÜVITIS],"Jah",Andmed[KUUPÄEV],">="&perioodiAlgus,Andmed[KUUPÄEV],"<="&periioodiLõpp) -> 820 | F10: 1 | G10: =perioodiAlgus -> 2012-05-01 | H10: =SUMIFS(Andmed[KILOMEETRID],Andmed[KUUPÄEV],G10,Andmed[TEGEVUS],$H$8) -> 162 | I10: =IFERROR(AVERAGEIFS(Andmed[km/l],Andmed[KUUPÄEV],G10,Andmed[TEGEVUS],$I$8),NA()) ->  | J10: =IFERROR(AVERAGEIFS(Andmed[s/km],Andmed[KUUPÄEV],G10,Andmed[TEGEVUS],$J$8),NA()) -> 
C11: Kuluhüvitis kokku: | D11: =D10*HüvitisKilomeetriKohta/100 -> 442.80 € | F11: 2 | G11: =G10+1 -> 2012-05-02 | H11: =SUMIFS(Andmed[KILOMEETRID],Andmed[KUUPÄEV],G11,Andmed[TEGEVUS],$H$8) -> 183 | I11: =IFERROR(AVERAGEIFS(Andmed[km/l],Andmed[KUUPÄEV],G11,Andmed[TEGEVUS],$I$8),NA()) -> 58.0 | J11: =IFERROR(AVERAGEIFS(Andmed[s/km],Andmed[KUUPÄEV],G11,Andmed[TEGEVUS],$J$8),NA()) -> 2.2
F12: 3 | G12: 2012-05-03 | H12: =SUMIFS(Andmed[KILOMEETRID],Andmed[KUUPÄEV],G12,Andmed[TEGEVUS],$H$8) -> 227 | I12: =IFERROR(AVERAGEIFS(Andmed[km/l],Andmed[KUUPÄEV],G12,Andmed[TEGEVUS],$I$8),NA()) ->  | J12: =IFERROR(AVERAGEIFS(Andmed[s/km],Andmed[KUUPÄEV],G12,Andmed[TEGEVUS],$J$8),NA()) -> 
F13: 4 | G13: 2012-05-04 | H13: =SUMIFS(Andmed[KILOMEETRID],Andmed[KUUPÄEV],G13,Andmed[TEGEVUS],$H$8) -> 130 | I13: =IFERROR(AVERAGEIFS(Andmed[km/l],Andmed[KUUPÄEV],G13,Andmed[TEGEVUS],$I$8),NA()) -> 17.8 | J13: =IFERROR(AVERAGEIFS(Andmed[s/km],Andmed[KUUPÄEV],G13,Andmed[TEGEVUS],$J$8),NA()) -> 7.2
F14: 5 | G14: 2012-05-05 | H14: =SUMIFS(Andmed[KILOMEETRID],Andmed[KUUPÄEV],G14,Andmed[TEGEVUS],$H$8) -> 0 | I14: =IFERROR(AVERAGEIFS(Andmed[km/l],Andmed[KUUPÄEV],G14,Andmed[TEGEVUS],$I$8),NA()) ->  | J14: =IFERROR(AVERAGEIFS(Andmed[s/km],Andmed[KUUPÄEV],G14,Andmed[TEGEVUS],$J$8),NA()) -> 
F15: 6 | G15: 2012-05-06 | H15: =SUMIFS(Andmed[KILOMEETRID],Andmed[KUUPÄEV],G15,Andmed[TEGEVUS],$H$8) -> 0 | I15: =IFERROR(AVERAGEIFS(Andmed[km/l],Andmed[KUUPÄEV],G15,Andmed[TEGEVUS],$I$8),NA()) ->  | J15: =IFERROR(AVERAGEIFS(Andmed[s/km],Andmed[KUUPÄEV],G15,Andmed[TEGEVUS],$J$8),NA()) -> 
F16: 7 | G16: 2012-05-07 | H16: =SUMIFS(Andmed[KILOMEETRID],Andmed[KUUPÄEV],G16,Andmed[TEGEVUS],$H$8) -> 94 | I16: =IFERROR(AVERAGEIFS(Andmed[km/l],Andmed[KUUPÄEV],G16,Andmed[TEGEVUS],$I$8),NA()) ->  | J16: =IFERROR(AVERAGEIFS(Andmed[s/km],Andmed[KUUPÄEV],G16,Andmed[TEGEVUS],$J$8),NA()) -> 
F17: 8 | G17: 2012-05-08 | H17: =SUMIFS(Andmed[KILOMEETRID],Andmed[KUUPÄEV],G17,Andmed[TEGEVUS],$H$8) -> 0 | I17: =IFERROR(AVERAGEIFS(Andmed[km/l],Andmed[KUUPÄEV],G17,Andmed[TEGEVUS],$I$8),NA()) ->  | J17: =IFERROR(AVERAGEIFS(Andmed[s/km],Andmed[KUUPÄEV],G17,Andmed[TEGEVUS],$J$8),NA()) -> 
F18: 9 | G18: 2012-05-09 | H18: =SUMIFS(Andmed[KILOMEETRID],Andmed[KUUPÄEV],G18,Andmed[TEGEVUS],$H$8) -> 131 | I18: =IFERROR(AVERAGEIFS(Andmed[km/l],Andmed[KUUPÄEV],G18,Andmed[TEGEVUS],$I$8),NA()) ->  | J18: =IFERROR(AVERAGEIFS(Andmed[s/km],Andmed[KUUPÄEV],G18,Andmed[TEGEVUS],$J$8),NA()) -> 
F19: 10 | G19: 2012-05-10 | H19: =SUMIFS(Andmed[KILOMEETRID],Andmed[KUUPÄEV],G19,Andmed[TEGEVUS],$H$8) -> 0 | I19: =IFERROR(AVERAGEIFS(Andmed[km/l],Andmed[KUUPÄEV],G19,Andmed[TEGEVUS],$I$8),NA()) ->  | J19: =IFERROR(AVERAGEIFS(Andmed[s/km],Andmed[KUUPÄEV],G19,Andmed[TEGEVUS],$J$8),NA()) -> 
F20: 11 | G20: 2012-05-11 | H20: =SUMIFS(Andmed[KILOMEETRID],Andmed[KUUPÄEV],G20,Andmed[TEGEVUS],$H$8) -> 0 | I20: =IFERROR(AVERAGEIFS(Andmed[km/l],Andmed[KUUPÄEV],G20,Andmed[TEGEVUS],$I$8),NA()) ->  | J20: =IFERROR(AVERAGEIFS(Andmed[s/km],Andmed[KUUPÄEV],G20,Andmed[TEGEVUS],$J$8),NA()) -> 
F21: 12 | G21: 2012-05-12 | H21: =SUMIFS(Andmed[KILOMEETRID],Andmed[KUUPÄEV],G21,Andmed[TEGEVUS],$H$8) -> 0 | I21: =IFERROR(AVERAGEIFS(Andmed[km/l],Andmed[KUUPÄEV],G21,Andmed[TEGEVUS],$I$8),NA()) ->  | J21: =IFERROR(AVERAGEIFS(Andmed[s/km],Andmed[KUUPÄEV],G21,Andmed[TEGEVUS],$J$8),NA()) -> 
F22: 13 | G22: 2012-05-13 | H22: =SUMIFS(Andmed[KILOMEETRID],Andmed[KUUPÄEV],G22,Andmed[TEGEVUS],$H$8) -> 0 | I22: =IFERROR(AVERAGEIFS(Andmed[km/l],Andmed[KUUPÄEV],G22,Andmed[TEGEVUS],$I$8),NA()) ->  | J22: =IFERROR(AVERAGEIFS(Andmed[s/km],Andmed[KUUPÄEV],G22,Andmed[TEGEVUS],$J$8),NA()) -> 
F23: 14 | G23: 2012-05-14 | H23: =SUMIFS(Andmed[KILOMEETRID],Andmed[KUUPÄEV],G23,Andmed[TEGEVUS],$H$8) -> 0 | I23: =IFERROR(AVERAGEIFS(Andmed[km/l],Andmed[KUUPÄEV],G23,Andmed[TEGEVUS],$I$8),NA()) ->  | J23: =IFERROR(AVERAGEIFS(Andmed[s/km],Andmed[KUUPÄEV],G23,Andmed[TEGEVUS],$J$8),NA()) -> 
F24: 15 | G24: 2012-05-15 | H24: =SUMIFS(Andmed[KILOMEETRID],Andmed[KUUPÄEV],G24,Andmed[TEGEVUS],$H$8) -> 0 | I24: =IFERROR(AVERAGEIFS(Andmed[km/l],Andmed[KUUPÄEV],G24,Andmed[TEGEVUS],$I$8),NA()) ->  | J24: =IFERROR(AVERAGEIFS(Andmed[s/km],Andmed[KUUPÄEV],G24,Andmed[TEGEVUS],$J$8),NA()) -> 
F25: 16 | G25: 2012-05-16 | H25: =SUMIFS(Andmed[KILOMEETRID],Andmed[KUUPÄEV],G25,Andmed[TEGEVUS],$H$8) -> 0 | I25: =IFERROR(AVERAGEIFS(Andmed[km/l],Andmed[KUUPÄEV],G25,Andmed[TEGEVUS],$I$8),NA()) ->  | J25: =IFERROR(AVERAGEIFS(Andmed[s/km],Andmed[KUUPÄEV],G25,Andmed[TEGEVUS],$J$8),NA()) -> 
F26: 17 | G26: 2012-05-17 | H26: =SUMIFS(Andmed[KILOMEETRID],Andmed[KUUPÄEV],G26,Andmed[TEGEVUS],$H$8) -> 0 | I26: =IFERROR(AVERAGEIFS(Andmed[km/l],Andmed[KUUPÄEV],G26,Andmed[TEGEVUS],$I$8),NA()) ->  | J26: =IFERROR(AVERAGEIFS(Andmed[s/km],Andmed[KUUPÄEV],G26,Andmed[TEGEVUS],$J$8),NA()) -> 
F27: 18 | G27: 2012-05-18 | H27: =SUMIFS(Andmed[KILOMEETRID],Andmed[KUUPÄEV],G27,Andmed[TEGEVUS],$H$8) -> 0 | I27: =IFERROR(AVERAGEIFS(Andmed[km/l],Andmed[KUUPÄEV],G27,Andmed[TEGEVUS],$I$8),NA()) ->  | J27: =IFERROR(AVERAGEIFS(Andmed[s/km],Andmed[KUUPÄEV],G27,Andmed[TEGEVUS],$J$8),NA()) -> 
F28: 19 | G28: 2012-05-19 | H28: =SUMIFS(Andmed[KILOMEETRID],Andmed[KUUPÄEV],G28,Andmed[TEGEVUS],$H$8) -> 0 | I28: =IFERROR(AVERAGEIFS(Andmed[km/l],Andmed[KUUPÄEV],G28,Andmed[TEGEVUS],$I$8),NA()) ->  | J28: =IFERROR(AVERAGEIFS(Andmed[s/km],Andmed[KUUPÄEV],G28,Andmed[TEGEVUS],$J$8),NA()) -> 
F29: 20 | G29: 2012-05-20 | H29: =SUMIFS(Andmed[KILOMEETRID],Andmed[KUUPÄEV],G29,Andmed[TEGEVUS],$H$8) -> 0 | I29: =IFERROR(AVERAGEIFS(Andmed[km/l],Andmed[KUUPÄEV],G29,Andmed[TEGEVUS],$I$8),NA()) ->  | J29: =IFERROR(AVERAGEIFS(Andmed[s/km],Andmed[KUUPÄEV],G29,Andmed[TEGEVUS],$J$8),NA()) -> 
F30: 21 | G30: 2012-05-21 | H30: =SUMIFS(Andmed[KILOMEETRID],Andmed[KUUPÄEV],G30,Andmed[TEGEVUS],$H$8) -> 0 | I30: =IFERROR(AVERAGEIFS(Andmed[km/l],Andmed[KUUPÄEV],G30,Andmed[TEGEVUS],$I$8),NA()) ->  | J30: =IFERROR(AVERAGEIFS(Andmed[s/km],Andmed[KUUPÄEV],G30,Andmed[TEGEVUS],$J$8),NA()) -> 
F31: 22 | G31: 2012-05-22 | H31: =SUMIFS(Andmed[KILOMEETRID],Andmed[KUUPÄEV],G31,Andmed[TEGEVUS],$H$8) -> 0 | I31: =IFERROR(AVERAGEIFS(Andmed[km/l],Andmed[KUUPÄEV],G31,Andmed[TEGEVUS],$I$8),NA()) ->  | J31: =IFERROR(AVERAGEIFS(Andmed[s/km],Andmed[KUUPÄEV],G31,Andmed[TEGEVUS],$J$8),NA()) -> 
F32: 23 | G32: 2012-05-23 | H32: =SUMIFS(Andmed[KILOMEETRID],Andmed[KUUPÄEV],G32,Andmed[TEGEVUS],$H$8) -> 0 | I32: =IFERROR(AVERAGEIFS(Andmed[km/l],Andmed[KUUPÄEV],G32,Andmed[TEGEVUS],$I$8),NA()) ->  | J32: =IFERROR(AVERAGEIFS(Andmed[s/km],Andmed[KUUPÄEV],G32,Andmed[TEGEVUS],$J$8),NA()) -> 
F33: 24 | G33: 2012-05-24 | H33: =SUMIFS(Andmed[KILOMEETRID],Andmed[KUUPÄEV],G33,Andmed[TEGEVUS],$H$8) -> 0 | I33: =IFERROR(AVERAGEIFS(Andmed[km/l],Andmed[KUUPÄEV],G33,Andmed[TEGEVUS],$I$8),NA()) ->  | J33: =IFERROR(AVERAGEIFS(Andmed[s/km],Andmed[KUUPÄEV],G33,Andmed[TEGEVUS],$J$8),NA()) -> 
F34: 25 | G34: 2012-05-25 | H34: =SUMIFS(Andmed[KILOMEETRID],Andmed[KUUPÄEV],G34,Andmed[TEGEVUS],$H$8) -> 0 | I34: =IFERROR(AVERAGEIFS(Andmed[km/l],Andmed[KUUPÄEV],G34,Andmed[TEGEVUS],$I$8),NA()) ->  | J34: =IFERROR(AVERAGEIFS(Andmed[s/km],Andmed[KUUPÄEV],G34,Andmed[TEGEVUS],$J$8),NA()) -> 
F35: 26 | G35: 2012-05-26 | H35: =SUMIFS(Andmed[KILOMEETRID],Andmed[KUUPÄEV],G35,Andmed[TEGEVUS],$H$8) -> 0 | I35: =IFERROR(AVERAGEIFS(Andmed[km/l],Andmed[KUUPÄEV],G35,Andmed[TEGEVUS],$I$8),NA()) ->  | J35: =IFERROR(AVERAGEIFS(Andmed[s/km],Andmed[KUUPÄEV],G35,Andmed[TEGEVUS],$J$8),NA()) -> 
F36: 27 | G36: 2012-05-27 | H36: =SUMIFS(Andmed[KILOMEETRID],Andmed[KUUPÄEV],G36,Andmed[TEGEVUS],$H$8) -> 0 | I36: =IFERROR(AVERAGEIFS(Andmed[km/l],Andmed[KUUPÄEV],G36,Andmed[TEGEVUS],$I$8),NA()) ->  | J36: =IFERROR(AVERAGEIFS(Andmed[s/km],Andmed[KUUPÄEV],G36,Andmed[TEGEVUS],$J$8),NA()) -> 
F37: 28 | G37: 2012-05-28 | H37: =SUMIFS(Andmed[KILOMEETRID],Andmed[KUUPÄEV],G37,Andmed[TEGEVUS],$H$8) -> 0 | I37: =IFERROR(AVERAGEIFS(Andmed[km/l],Andmed[KUUPÄEV],G37,Andmed[TEGEVUS],$I$8),NA()) ->  | J37: =IFERROR(AVERAGEIFS(Andmed[s/km],Andmed[KUUPÄEV],G37,Andmed[TEGEVUS],$J$8),NA()) -> 
F38: 29 | G38: 2012-05-29 | H38: =SUMIFS(Andmed[KILOMEETRID],Andmed[KUUPÄEV],G38,Andmed[TEGEVUS],$H$8) -> 0 | I38: =IFERROR(AVERAGEIFS(Andmed[km/l],Andmed[KUUPÄEV],G38,Andmed[TEGEVUS],$I$8),NA()) ->  | J38: =IFERROR(AVERAGEIFS(Andmed[s/km],Andmed[KUUPÄEV],G38,Andmed[TEGEVUS],$J$8),NA()) -> 
F39: 30 | G39: 2012-05-30 | H39: =SUMIFS(Andmed[KILOMEETRID],Andmed[KUUPÄEV],G39,Andmed[TEGEVUS],$H$8) -> 0 | I39: =IFERROR(AVERAGEIFS(Andmed[km/l],Andmed[KUUPÄEV],G39,Andmed[TEGEVUS],$I$8),NA()) ->  | J39: =IFERROR(AVERAGEIFS(Andmed[s/km],Andmed[KUUPÄEV],G39,Andmed[TEGEVUS],$J$8),NA()) -> 
F40: 31 | G40: 2012-05-31 | H40: =SUMIFS(Andmed[KILOMEETRID],Andmed[KUUPÄEV],G40,Andmed[TEGEVUS],$H$8) -> 0 | I40: =IFERROR(AVERAGEIFS(Andmed[km/l],Andmed[KUUPÄEV],G40,Andmed[TEGEVUS],$I$8),NA()) ->  | J40: =IFERROR(AVERAGEIFS(Andmed[s/km],Andmed[KUUPÄEV],G40,Andmed[TEGEVUS],$J$8),NA()) -> 
F41: 32 | G41: 2012-06-01 | H41: =SUMIFS(Andmed[KILOMEETRID],Andmed[KUUPÄEV],G41,Andmed[TEGEVUS],$H$8) -> 0 | I41: =IFERROR(AVERAGEIFS(Andmed[km/l],Andmed[KUUPÄEV],G41,Andmed[TEGEVUS],$I$8),NA()) ->  | J41: =IFERROR(AVERAGEIFS(Andmed[s/km],Andmed[KUUPÄEV],G41,Andmed[TEGEVUS],$J$8),NA()) -> 
F42: 33 | G42: 2012-06-02 | H42: =SUMIFS(Andmed[KILOMEETRID],Andmed[KUUPÄEV],G42,Andmed[TEGEVUS],$H$8) -> 0 | I42: =IFERROR(AVERAGEIFS(Andmed[km/l],Andmed[KUUPÄEV],G42,Andmed[TEGEVUS],$I$8),NA()) ->  | J42: =IFERROR(AVERAGEIFS(Andmed[s/km],Andmed[KUUPÄEV],G42,Andmed[TEGEVUS],$J$8),NA()) -> 
F43: 34 | G43: =G42+1 -> 2012-06-03 | H43: =SUMIFS(Andmed[KILOMEETRID],Andmed[KUUPÄEV],G43,Andmed[TEGEVUS],$H$8) -> 0 | I43: =IFERROR(AVERAGEIFS(Andmed[km/l],Andmed[KUUPÄEV],G43,Andmed[TEGEVUS],$I$8),NA()) ->  | J43: =IFERROR(AVERAGEIFS(Andmed[s/km],Andmed[KUUPÄEV],G43,Andmed[TEGEVUS],$J$8),NA()) -> 
F44: 35 | G44: 2012-06-04 | H44: =SUMIFS(Andmed[KILOMEETRID],Andmed[KUUPÄEV],G44,Andmed[TEGEVUS],$H$8) -> 0 | I44: =IFERROR(AVERAGEIFS(Andmed[km/l],Andmed[KUUPÄEV],G44,Andmed[TEGEVUS],$I$8),NA()) ->  | J44: =IFERROR(AVERAGEIFS(Andmed[s/km],Andmed[KUUPÄEV],G44,Andmed[TEGEVUS],$J$8),NA()) -> 
F45: 36 | G45: 2012-06-05 | H45: =SUMIFS(Andmed[KILOMEETRID],Andmed[KUUPÄEV],G45,Andmed[TEGEVUS],$H$8) -> 0 | I45: =IFERROR(AVERAGEIFS(Andmed[km/l],Andmed[KUUPÄEV],G45,Andmed[TEGEVUS],$I$8),NA()) ->  | J45: =IFERROR(AVERAGEIFS(Andmed[s/km],Andmed[KUUPÄEV],G45,Andmed[TEGEVUS],$J$8),NA()) -> 
F46: 37 | G46: 2012-06-06 | H46: =SUMIFS(Andmed[KILOMEETRID],Andmed[KUUPÄEV],G46,Andmed[TEGEVUS],$H$8) -> 0 | I46: =IFERROR(AVERAGEIFS(Andmed[km/l],Andmed[KUUPÄEV],G46,Andmed[TEGEVUS],$I$8),NA()) ->  | J46: =IFERROR(AVERAGEIFS(Andmed[s/km],Andmed[KUUPÄEV],G46,Andmed[TEGEVUS],$J$8),NA()) -> 
F47: 38 | G47: 2012-06-07 | H47: =SUMIFS(Andmed[KILOMEETRID],Andmed[KUUPÄEV],G47,Andmed[TEGEVUS],$H$8) -> 0 | I47: =IFERROR(AVERAGEIFS(Andmed[km/l],Andmed[KUUPÄEV],G47,Andmed[TEGEVUS],$I$8),NA()) ->  | J47: =IFERROR(AVERAGEIFS(Andmed[s/km],Andmed[KUUPÄEV],G47,Andmed[TEGEVUS],$J$8),NA()) -> 
F48: 39 | G48: 2012-06-08 | H48: =SUMIFS(Andmed[KILOMEETRID],Andmed[KUUPÄEV],G48,Andmed[TEGEVUS],$H$8) -> 0 | I48: =IFERROR(AVERAGEIFS(Andmed[km/l],Andmed[KUUPÄEV],G48,Andmed[TEGEVUS],$I$8),NA()) ->  | J48: =IFERROR(AVERAGEIFS(Andmed[s/km],Andmed[KUUPÄEV],G48,Andmed[TEGEVUS],$J$8),NA()) -> 
F49: 40 | G49: 2012-06-09 | H49: =SUMIFS(Andmed[KILOMEETRID],Andmed[KUUPÄEV],G49,Andmed[TEGEVUS],$H$8) -> 0 | I49: =IFERROR(AVERAGEIFS(Andmed[km/l],Andmed[KUUPÄEV],G49,Andmed[TEGEVUS],$I$8),NA()) ->  | J49: =IFERROR(AVERAGEIFS(Andmed[s/km],Andmed[KUUPÄEV],G49,Andmed[TEGEVUS],$J$8),NA()) -> 
F50: 41 | G50: 2012-06-10 | H50: =SUMIFS(Andmed[KILOMEETRID],Andmed[KUUPÄEV],G50,Andmed[TEGEVUS],$H$8) -> 0 | I50: =IFERROR(AVERAGEIFS(Andmed[km/l],Andmed[KUUPÄEV],G50,Andmed[TEGEVUS],$I$8),NA()) ->  | J50: =IFERROR(AVERAGEIFS(Andmed[s/km],Andmed[KUUPÄEV],G50,Andmed[TEGEVUS],$J$8),NA()) -> 
F51: 42 | G51: 2012-06-11 | H51: =SUMIFS(Andmed[KILOMEETRID],Andmed[KUUPÄEV],G51,Andmed[TEGEVUS],$H$8) -> 0 | I51: =IFERROR(AVERAGEIFS(Andmed[km/l],Andmed[KUUPÄEV],G51,Andmed[TEGEVUS],$I$8),NA()) ->  | J51: =IFERROR(AVERAGEIFS(Andmed[s/km],Andmed[KUUPÄEV],G51,Andmed[TEGEVUS],$J$8),NA()) -> 
F52: 43 | G52: 2012-06-12 | H52: =SUMIFS(Andmed[KILOMEETRID],Andmed[KUUPÄEV],G52,Andmed[TEGEVUS],$H$8) -> 0 | I52: =IFERROR(AVERAGEIFS(Andmed[km/l],Andmed[KUUPÄEV],G52,Andmed[TEGEVUS],$I$8),NA()) ->  | J52: =IFERROR(AVERAGEIFS(Andmed[s/km],Andmed[KUUPÄEV],G52,Andmed[TEGEVUS],$J$8),NA()) -> 
F53: 44 | G53: 2012-06-13 | H53: =SUMIFS(Andmed[KILOMEETRID],Andmed[KUUPÄEV],G53,Andmed[TEGEVUS],$H$8) -> 0 | I53: =IFERROR(AVERAGEIFS(Andmed[km/l],Andmed[KUUPÄEV],G53,Andmed[TEGEVUS],$I$8),NA()) ->  | J53: =IFERROR(AVERAGEIFS(Andmed[s/km],Andmed[KUUPÄEV],G53,Andmed[TEGEVUS],$J$8),NA()) -> 
F54: 45 | G54: 2012-06-14 | H54: =SUMIFS(Andmed[KILOMEETRID],Andmed[KUUPÄEV],G54,Andmed[TEGEVUS],$H$8) -> 0 | I54: =IFERROR(AVERAGEIFS(Andmed[km/l],Andmed[KUUPÄEV],G54,Andmed[TEGEVUS],$I$8),NA()) ->  | J54: =IFERROR(AVERAGEIFS(Andmed[s/km],Andmed[KUUPÄEV],G54,Andmed[TEGEVUS],$J$8),NA()) -> 
F55: 46 | G55: 2012-06-15 | H55: =SUMIFS(Andmed[KILOMEETRID],Andmed[KUUPÄEV],G55,Andmed[TEGEVUS],$H$8) -> 0 | I55: =IFERROR(AVERAGEIFS(Andmed[km/l],Andmed[KUUPÄEV],G55,Andmed[TEGEVUS],$I$8),NA()) ->  | J55: =IFERROR(AVERAGEIFS(Andmed[s/km],Andmed[KUUPÄEV],G55,Andmed[TEGEVUS],$J$8),NA()) -> 
F56: 47 | G56: 2012-06-16 | H56: =SUMIFS(Andmed[KILOMEETRID],Andmed[KUUPÄEV],G56,Andmed[TEGEVUS],$H$8) -> 0 | I56: =IFERROR(AVERAGEIFS(Andmed[km/l],Andmed[KUUPÄEV],G56,Andmed[TEGEVUS],$I$8),NA()) ->  | J56: =IFERROR(AVERAGEIFS(Andmed[s/km],Andmed[KUUPÄEV],G56,Andmed[TEGEVUS],$J$8),NA()) -> 
F57: 48 | G57: 2012-06-17 | H57: =SUMIFS(Andmed[KILOMEETRID],Andmed[KUUPÄEV],G57,Andmed[TEGEVUS],$H$8) -> 0 | I57: =IFERROR(AVERAGEIFS(Andmed[km/l],Andmed[KUUPÄEV],G57,Andmed[TEGEVUS],$I$8),NA()) ->  | J57: =IFERROR(AVERAGEIFS(Andmed[s/km],Andmed[KUUPÄEV],G57,Andmed[TEGEVUS],$J$8),NA()) -> 
F58: 49 | G58: 2012-06-18 | H58: =SUMIFS(Andmed[KILOMEETRID],Andmed[KUUPÄEV],G58,Andmed[TEGEVUS],$H$8) -> 0 | I58: =IFERROR(AVERAGEIFS(Andmed[km/l],Andmed[KUUPÄEV],G58,Andmed[TEGEVUS],$I$8),NA()) ->  | J58: =IFERROR(AVERAGEIFS(Andmed[s/km],Andmed[KUUPÄEV],G58,Andmed[TEGEVUS],$J$8),NA()) -> 
F59: 50 | G59: 2012-06-19 | H59: =SUMIFS(Andmed[KILOMEETRID],Andmed[KUUPÄEV],G59,Andmed[TEGEVUS],$H$8) -> 0 | I59: =IFERROR(AVERAGEIFS(Andmed[km/l],Andmed[KUUPÄEV],G59,Andmed[TEGEVUS],$I$8),NA()) ->  | J59: =IFERROR(AVERAGEIFS(Andmed[s/km],Andmed[KUUPÄEV],G59,Andmed[TEGEVUS],$J$8),NA()) -> 
F60: 51 | G60: 2012-06-20 | H60: =SUMIFS(Andmed[KILOMEETRID],Andmed[KUUPÄEV],G60,Andmed[TEGEVUS],$H$8) -> 0 | I60: =IFERROR(AVERAGEIFS(Andmed[km/l],Andmed[KUUPÄEV],G60,Andmed[TEGEVUS],$I$8),NA()) ->  | J60: =IFERROR(AVERAGEIFS(Andmed[s/km],Andmed[KUUPÄEV],G60,Andmed[TEGEVUS],$J$8),NA()) -> 
F61: 52 | G61: 2012-06-21 | H61: =SUMIFS(Andmed[KILOMEETRID],Andmed[KUUPÄEV],G61,Andmed[TEGEVUS],$H$8) -> 0 | I61: =IFERROR(AVERAGEIFS(Andmed[km/l],Andmed[KUUPÄEV],G61,Andmed[TEGEVUS],$I$8),NA()) ->  | J61: =IFERROR(AVERAGEIFS(Andmed[s/km],Andmed[KUUPÄEV],G61,Andmed[TEGEVUS],$J$8),NA()) -> 
F62: 53 | G62: 2012-06-22 | H62: =SUMIFS(Andmed[KILOMEETRID],Andmed[KUUPÄEV],G62,Andmed[TEGEVUS],$H$8) -> 0 | I62: =IFERROR(AVERAGEIFS(Andmed[km/l],Andmed[KUUPÄEV],G62,Andmed[TEGEVUS],$I$8),NA()) ->  | J62: =IFERROR(AVERAGEIFS(Andmed[s/km],Andmed[KUUPÄEV],G62,Andmed[TEGEVUS],$J$8),NA()) -> 
F63: 54 | G63: 2012-06-23 | H63: =SUMIFS(Andmed[KILOMEETRID],Andmed[KUUPÄEV],G63,Andmed[TEGEVUS],$H$8) -> 0 | I63: =IFERROR(AVERAGEIFS(Andmed[km/l],Andmed[KUUPÄEV],G63,Andmed[TEGEVUS],$I$8),NA()) ->  | J63: =IFERROR(AVERAGEIFS(Andmed[s/km],Andmed[KUUPÄEV],G63,Andmed[TEGEVUS],$J$8),NA()) -> 
F64: 55 | G64: 2012-06-24 | H64: =SUMIFS(Andmed[KILOMEETRID],Andmed[KUUPÄEV],G64,Andmed[TEGEVUS],$H$8) -> 0 | I64: =IFERROR(AVERAGEIFS(Andmed[km/l],Andmed[KUUPÄEV],G64,Andmed[TEGEVUS],$I$8),NA()) ->  | J64: =IFERROR(AVERAGEIFS(Andmed[s/km],Andmed[KUUPÄEV],G64,Andmed[TEGEVUS],$J$8),NA()) -> 
F65: 56 | G65: 2012-06-25 | H65: =SUMIFS(Andmed[KILOMEETRID],Andmed[KUUPÄEV],G65,Andmed[TEGEVUS],$H$8) -> 0 | I65: =IFERROR(AVERAGEIFS(Andmed[km/l],Andmed[KUUPÄEV],G65,Andmed[TEGEVUS],$I$8),NA()) ->  | J65: =IFERROR(AVERAGEIFS(Andmed[s/km],Andmed[KUUPÄEV],G65,Andmed[TEGEVUS],$J$8),NA()) -> 
F66: 57 | G66: 2012-06-26 | H66: =SUMIFS(Andmed[KILOMEETRID],Andmed[KUUPÄEV],G66,Andmed[TEGEVUS],$H$8) -> 0 | I66: =IFERROR(AVERAGEIFS(Andmed[km/l],Andmed[KUUPÄEV],G66,Andmed[TEGEVUS],$I$8),NA()) ->  | J66: =IFERROR(AVERAGEIFS(Andmed[s/km],Andmed[KUUPÄEV],G66,Andmed[TEGEVUS],$J$8),NA()) -> 
F67: 58 | G67: 2012-06-27 | H67: =SUMIFS(Andmed[KILOMEETRID],Andmed[KUUPÄEV],G67,Andmed[TEGEVUS],$H$8) -> 0 | I67: =IFERROR(AVERAGEIFS(Andmed[km/l],Andmed[KUUPÄEV],G67,Andmed[TEGEVUS],$I$8),NA()) ->  | J67: =IFERROR(AVERAGEIFS(Andmed[s/km],Andmed[KUUPÄEV],G67,Andmed[TEGEVUS],$J$8),NA()) -> 
F68: 59 | G68: 2012-06-28 | H68: =SUMIFS(Andmed[KILOMEETRID],Andmed[KUUPÄEV],G68,Andmed[TEGEVUS],$H$8) -> 0 | I68: =IFERROR(AVERAGEIFS(Andmed[km/l],Andmed[KUUPÄEV],G68,Andmed[TEGEVUS],$I$8),NA()) ->  | J68: =IFERROR(AVERAGEIFS(Andmed[s/km],Andmed[KUUPÄEV],G68,Andmed[TEGEVUS],$J$8),NA()) -> 
F69: 60 | G69: 2012-06-29 | H69: =SUMIFS(Andmed[KILOMEETRID],Andmed[KUUPÄEV],G69,Andmed[TEGEVUS],$H$8) -> 0 | I69: =IFERROR(AVERAGEIFS(Andmed[km/l],Andmed[KUUPÄEV],G69,Andmed[TEGEVUS],$I$8),NA()) ->  | J69: =IFERROR(AVERAGEIFS(Andmed[s/km],Andmed[KUUPÄEV],G69,Andmed[TEGEVUS],$J$8),NA()) -> 
